lending/lending_fUSD_20260124
["ID","MTS","AMOUNT","RATE_DAILY","PERIOD"]
[403175900,1769243439965,-2000.0,0.00017516,2]
[403175902,1769243439974,-500.77696741,0.00017516,2]
[403175904,1769243439983,-2008.17510359,0.00017516,2]
[403175906,1769243439992,-2000.0,0.00017516,2]
[403175908,1769243440002,-2000.0,0.00017516,2]
[403175910,1769243440012,-506.85151747,0.00017516,2]
[403175912,1769243440022,-1508.23021218,0.00017516,2]
[403175914,1769243440035,-2000.0,0.00017516,2]
[403175916,1769243440044,-2000.0,0.00017516,2]
[403175918,1769243440053,-610.88906686,0.00017516,2]
[403175920,1769243440063,-1345.63815331,0.00017516,2]
[403175922,1769243440072,-2000.0,0.00017516,2]
[403175924,1769243440081,-1519.79945563,0.00017516,2]
[403175926,1769243440091,-2000.0,0.00017516,2]
[403175928,1769243440100,-2000.0,0.00017516,2]
[403175930,1769243440110,-2000.0,0.00017516,2]
[403175932,1769243440119,-507.95507628,0.00017516,2]
[403175934,1769243440128,-2000.0,0.00017516,2]
[403175936,1769243440137,-158.81404097,0.0001752,2]
[403175938,1769243440146,-500.0,0.00017534,7]
[403175940,1769243440155,-500.0,0.00017534,7]
[403175941,1769243440164,-165.0,0.00017534,2]
[403175943,1769243440173,-1000.0,0.00017534,2]
[403175945,1769243440182,-1703.1,0.00017536,2]
[403175946,1769243440191,-557.0,0.00017545,2]
[403175947,1769243440202,-997.17336156,0.00017555,2]
[403175948,1769243440211,-150.0,0.00017568,2]
[403175949,1769243440221,-601.31337833,0.0001757,2]
[403175950,1769243440234,-1425.13914229,0.0001757,2]
[403175951,1769243440243,-200.0,0.00017587,2]
[403175952,1769243440254,-557.0,0.00017589,2]
[403175953,1769243440265,-152.0,0.0001759,11]
[403175954,1769243440275,-2100.0,0.000176,6]
[403175955,1769243440285,-1703.1,0.00017602,2]
[403175956,1769243440295,-557.0,0.00017616,2]
[403175957,1769243440305,-557.0,0.00017636,2]
[403175958,1769243440315,-150.0,0.0001764,2]
[403175959,1769243440324,-2651.5870312,0.0001764,2]
[403175960,1769243440333,-300.0,0.0001764,2]
[403175961,1769243440344,-300.0,0.0001764,2]
[403175962,1769243440356,-413.71370939,0.0001764,2]
[403175963,1769243440366,-184.0,0.00017641,2]
[403175964,1769243440375,-1269.0,0.00017641,2]
[403175965,1769243440385,-916.0,0.00017641,2]
[403175966,1769243440395,-1203.0,0.00017641,2]
[403175967,1769243440405,-1703.1,0.00017669,2]
[403175968,1769243440415,-2100.0,0.000177,6]
[403175969,1769243440424,-557.0,0.00017707,2]
[403175970,1769243440435,-1000.0,0.00017709,2]
[403175971,1769243440445,-150.0,0.00017712,2]
[403175972,1769243440456,-929.63069455,0.0001773,2]
[403175973,1769243440467,-151.0,0.00017733,2]
[403175974,1769243440476,-151.0,0.00017733,2]
[403175975,1769243440487,-1265.0,0.00017733,2]
[403175976,1769243440496,-1265.0,0.00017733,2]
[403175977,1769243440506,-1265.0,0.00017733,2]
[403175978,1769243440515,-151.0,0.00017733,2]
[403175979,1769243440525,-151.0,0.00017733,2]
[403175980,1769243440534,-151.0,0.00017733,2]
[403175981,1769243440543,-151.0,0.00017733,2]
[403175982,1769243440555,-151.0,0.00017733,2]
[403175983,1769243440564,-151.0,0.00017733,2]
[403175984,1769243440573,-151.0,0.00017733,2]
[403175985,1769243440583,-151.0,0.00017733,2]
[403175986,1769243440592,-151.0,0.00017733,2]
[403175987,1769243440602,-151.0,0.00017733,2]
[403175988,1769243440611,-151.0,0.00017733,2]
[403175989,1769243440621,-151.0,0.00017733,2]
[403175990,1769243440630,-151.0,0.00017733,2]
[403175991,1769243440640,-151.0,0.00017733,2]
[403175992,1769243440649,-151.0,0.00017733,2]
[403175993,1769243440659,-151.0,0.00017733,2]
[403175994,1769243440668,-151.0,0.00017733,2]
[403175995,1769243440678,-151.0,0.00017733,2]
[403175996,1769243440687,-193.30767454,0.00017733,2]
[403175997,1769243440697,-166.39156659,0.00017733,2]
[403175998,1769243440707,-158.0,0.00017733,2]
[403175999,1769243440717,-1703.1,0.00017735,2]
[403176000,1769243440727,-500.0,0.00017771,2]
[403176001,1769243440736,-150.0,0.00017784,2]
[403176002,1769243440746,-926.0,0.000178,2]
[403176003,1769243440755,-604.0,0.000178,2]
[403176004,1769243440765,-982.0,0.000178,2]
[403176005,1769243440775,-2100.0,0.000178,6]
[403176006,1769243440784,-1703.1,0.00017801,2]
[403176007,1769243440794,-636.91,0.00017807,2]
[403176008,1769243440803,-500.0,0.00017808,2]
[403176009,1769243440813,-1000.0,0.00017808,2]
[403176010,1769243440823,-152.0,0.00017815,12]
[403176011,1769243440832,-200.0,0.00017816,2]
[403176012,1769243440842,-172.8753019,0.0001782,6]
[403176013,1769243440852,-376.5987,0.0001782,2]
[403176014,1769243440862,-376.59871,0.0001782,2]
[403176015,1769243440871,-231.38369303,0.0001782,2]
[403176016,1769243440881,-4239.6812621,0.00017831,2]
[403176017,1769243440890,-300.0,0.00017837,2]
[403176018,1769243440900,-300.0,0.00017837,2]
[403176019,1769243440909,-300.0,0.00017837,2]
[403176020,1769243440918,-25000.0,0.00017838,3]
[403176021,1769243440928,-300.0,0.00017846,2]
[403176022,1769243440937,-300.0,0.00017846,2]
[403176023,1769243440947,-25000.0,0.00017847,3]
[403176024,1769243440959,-150.0,0.00017856,2]
[403176025,1769243440969,-500.0,0.00017863,2]
[403176026,1769243440978,-1703.1,0.00017867,2]
[403176027,1769243440988,-300.0,0.00017873,2]
[403176028,1769243440998,-300.0,0.00017873,2]
[403176029,1769243441008,-25000.0,0.00017874,3]
[403176030,1769243441017,-300.0,0.00017881,2]
[403176031,1769243441028,-300.0,0.00017881,2]
[403176032,1769243441036,-151.0,0.00017882,2]
[403176033,1769243441046,-153.831139,0.00017882,2]
[403176034,1769243441055,-151.0,0.00017882,2]
[403176035,1769243441066,-326.279323,0.00017882,2]
[403176036,1769243441075,-326.279323,0.00017882,2]
[403176038,1769243441085,-326.279323,0.00017882,2]
[403176040,1769243441094,-263.199128,0.00017882,2]
[403176041,1769243441104,-263.199128,0.00017882,2]
[403176042,1769243441113,-263.199128,0.00017882,2]
[403176043,1769243441124,-263.199128,0.00017882,2]
[403176044,1769243441134,-1778.019301,0.00017882,2]
[403176045,1769243441143,-151.0,0.00017882,2]
[403176046,1769243441152,-1778.019301,0.00017882,2]
[403176047,1769243441162,-151.0,0.00017882,2]
[403176048,1769243441171,-1778.019301,0.00017882,2]
[403176049,1769243441180,-151.0,0.00017882,2]
[403176050,1769243441190,-1778.019301,0.00017882,2]
[403176051,1769243441292,-151.0,0.00017882,2]
[403176052,1769243441302,-151.0,0.00017882,2]
[403176053,1769243441311,-288.448262,0.00017882,2]
[403176054,1769243441320,-151.0,0.00017882,2]
[403176055,1769243441329,-151.0,0.00017882,2]
[403176056,1769243441339,-170.60105,0.00017882,2]
[403176057,1769243441350,-12324.10810635,0.00017882,3]
[403176058,1769243441819,-12675.89189365,0.00017882,3]
[403176059,1769243441829,-10000.0,0.00017889,2]
[403176060,1769243441838,-636.91,0.0001789,2]
[403176061,1769243441847,-150.0,0.0001789,2]
[403176062,1769243441857,-300.0,0.0001789,2]
[403176063,1769243441866,-300.0,0.0001789,2]
[403176064,1769243441876,-151.0,0.00017891,2]
[403176065,1769243441885,-164.996391,0.00017891,2]
[403176066,1769243441894,-151.0,0.00017891,2]
[403176067,1769243441902,-25000.0,0.00017891,3]
[403176068,1769243441912,-300.0,0.00017899,2]
[403176069,1769243441924,-300.0,0.00017899,2]
[403176070,1769243441935,-1396.20801618,0.000179,2]
[403176071,1769243441944,-291.52768833,0.000179,2]
[403176072,1769243441955,-2040.69381834,0.000179,2]
[403176073,1769243441966,-25000.0,0.000179,3]
[403176074,1769243441975,-151.0,0.000179,2]
[403176075,1769243441984,-151.0,0.000179,2]
[403176076,1769243441993,-331.15868013,0.000179,2]
[403176077,1769243442007,-151.0,0.000179,2]
[403176078,1769243442018,-151.0,0.000179,2]
[403176079,1769243442028,-151.0,0.000179,2]
[403176080,1769243442038,-151.0,0.000179,2]
[403176081,1769243442048,-151.0,0.000179,2]
[403176082,1769243442057,-184.894114,0.000179,2]
[403176083,1769243442066,-154.021893,0.000179,2]
[403176084,1769243442075,-155.447988,0.000179,2]
[403176085,1769243442085,-152.531331,0.000179,2]
[403176086,1769243442094,-151.0,0.000179,2]
[403176087,1769243442103,-252.653557,0.000179,2]
[403176088,1769243442111,-252.653557,0.000179,2]
[403176089,1769243442120,-252.653557,0.000179,2]
[403176090,1769243442130,-252.653557,0.000179,2]
[403176091,1769243442139,-151.0,0.000179,2]
[403176092,1769243442149,-153.703324,0.000179,2]
[403176093,1769243442159,-151.0,0.000179,2]
[403176094,1769243442168,-151.0,0.000179,2]
[403176095,1769243442178,-151.0,0.000179,2]
[403176096,1769243442188,-151.0,0.000179,2]
[403176097,1769243442198,-151.0,0.000179,2]
[403176098,1769243442207,-151.0,0.000179,2]
[403176099,1769243442219,-151.0,0.000179,2]
[403176100,1769243442228,-151.0,0.000179,2]
[403176101,1769243442238,-176.356575,0.000179,2]
[403176102,1769243442248,-151.0,0.000179,2]
[403176103,1769243442257,-151.0,0.000179,2]
[403176104,1769243442266,-415.87320689,0.000179,3]
[403176105,1769243442275,-151.0,0.000179,2]
[403176106,1769243442285,-151.0,0.000179,2]
[403176107,1769243442294,-151.0,0.000179,2]
[403176108,1769243442305,-151.0,0.000179,2]
[403176109,1769243442314,-151.0,0.000179,2]
[403176110,1769243442326,-151.0,0.000179,2]
[403176111,1769243442335,-151.0,0.000179,2]
[403176112,1769243442344,-171.806903,0.000179,2]
[403176113,1769243442354,-151.0,0.000179,2]
[403176114,1769243442363,-151.0,0.000179,2]
[403176115,1769243442372,-151.0,0.000179,2]
[403176116,1769243442381,-151.0,0.000179,2]
[403176117,1769243442391,-151.0,0.000179,2]
[403176118,1769243442400,-151.0,0.000179,2]
[403176119,1769243442409,-151.0,0.000179,2]
[403176120,1769243442418,-151.0,0.000179,2]
[403176121,1769243442427,-151.0,0.000179,2]
[403176122,1769243442437,-151.0,0.000179,2]
[403176123,1769243442446,-151.0,0.000179,2]
[403176124,1769243442456,-151.0,0.000179,2]
[403176125,1769243442465,-151.0,0.000179,2]
[403176126,1769243442476,-151.0,0.000179,2]
[403176127,1769243442485,-151.0,0.000179,2]
[403176128,1769243442494,-151.0,0.000179,2]
[403176129,1769243442506,-151.0,0.000179,2]
[403176130,1769243442516,-161.031804,0.000179,2]
[403176131,1769243442525,-298.751774,0.000179,2]
[403176132,1769243442535,-151.0,0.000179,2]
[403176133,1769243442545,-797.581715,0.000179,2]
[403176134,1769243442555,-151.0,0.000179,2]
[403176135,1769243442565,-204.753282,0.000179,2]
[403176136,1769243442574,-797.581715,0.000179,2]
[403176137,1769243442583,-204.753282,0.000179,2]
[403176138,1769243442593,-797.581715,0.000179,2]
[403176139,1769243442602,-204.753282,0.000179,2]
[403176140,1769243442612,-797.581715,0.000179,2]
[403176141,1769243442621,-204.753282,0.000179,2]
[403176142,1769243442631,-151.0,0.000179,2]
[403176143,1769243442640,-151.0,0.000179,2]
[403176144,1769243442651,-161.265645,0.000179,2]
[403176145,1769243442660,-159.156472,0.000179,2]
[403176146,1769243442670,-418.399092,0.000179,2]
[403176147,1769243442679,-418.399092,0.000179,2]
[403176148,1769243442689,-418.399092,0.000179,2]
[403176149,1769243442698,-418.399092,0.000179,2]
[403176150,1769243442707,-151.0,0.000179,2]
[403176151,1769243442716,-151.0,0.000179,2]
[403176152,1769243442726,-188.908359,0.000179,2]
[403176153,1769243442736,-151.0,0.000179,2]
[403176154,1769243442747,-894.892771,0.000179,2]
[403176155,1769243442757,-894.892771,0.000179,2]
[403176156,1769243442767,-894.892771,0.000179,2]
[403176157,1769243442777,-894.892771,0.000179,2]
[403176158,1769243442787,-151.0,0.000179,2]
[403176159,1769243442797,-279.673858,0.000179,2]
[403176160,1769243442807,-151.0,0.000179,2]
[403176161,1769243442816,-151.0,0.000179,2]
[403176162,1769243442826,-151.0,0.000179,2]
[403176163,1769243442836,-155.547063,0.000179,2]
[403176164,1769243442846,-151.0,0.000179,2]
[403176165,1769243442855,-151.0,0.000179,2]
[403176166,1769243442864,-153.983409,0.000179,2]
[403176167,1769243442874,-151.0,0.000179,2]
[403176168,1769243442885,-151.0,0.000179,2]
[403176169,1769243442895,-500.0,0.000179,2]
[403176170,1769243442906,-151.0,0.000179,2]
[403176171,1769243442917,-151.0,0.000179,2]
[403176172,1769243442926,-500.0,0.000179,2]
[403176173,1769243442937,-500.0,0.000179,2]
[403176174,1769243442947,-500.0,0.000179,2]
[403176175,1769243442960,-151.0,0.000179,2]
[403176176,1769243442971,-439.049769,0.000179,2]
[403176177,1769243442980,-439.049769,0.000179,2]
[403176178,1769243442991,-439.049769,0.000179,2]
[403176179,1769243443003,-439.049769,0.000179,2]
[403176180,1769243443015,-2540.0,0.000179,6]
[403176181,1769243443025,-5155.24021396,0.000179,2]
[403176182,1769243443038,-151.0,0.000179,2]
[403176183,1769243443051,-151.0,0.000179,2]
[403176184,1769243443062,-151.0,0.000179,2]
[403176185,1769243443073,-151.0,0.000179,2]
[403176186,1769243443084,-151.0,0.000179,2]
[403176187,1769243443099,-151.0,0.000179,2]
[403176188,1769243443111,-6670.74257634,0.000179,2]
[403176189,1769243443123,-1227.1301389,0.000179,2]
[403176190,1769243443133,-190.80620809,0.000179,3]
[403176191,1769243443142,-151.0,0.000179,2]
[403176192,1769243443154,-151.0,0.000179,2]
[403176193,1769243443165,-238.966542,0.000179,2]
[403176195,1769243443174,-151.0,0.000179,2]
[403176197,1769243443184,-182.41857,0.000179,2]
[403176198,1769243443193,-10031.62268467,0.000179,2]
[403176199,1769243443202,-151.0,0.000179,2]
[403176200,1769243443211,-210.76,0.00017907,2]
[403176201,1769243443221,-470.62193096,0.00017918,2]
[403176202,1769243443231,-226.31938823,0.00017927,2]
[403176203,1769243443240,-150.0,0.00017928,2]
[403176204,1769243443250,-1703.1,0.00017934,2]
[403176205,1769243443259,-200.0,0.00017942,2]
[403176206,1769243443268,-557.0,0.00017964,2]
[403176207,1769243443277,-500.0,0.0001797,2]
[403176208,1769243443286,-500.0,0.0001797,2]
[403176209,1769243443295,-500.0,0.0001797,2]
[403176210,1769243443304,-1000.0,0.0001797,2]
[403176211,1769243443314,-500.0,0.0001797,2]
[403176212,1769243443323,-1000.0,0.0001797,2]
[403176213,1769243443332,-500.0,0.0001797,2]
[403176214,1769243443341,-1000.0,0.0001797,2]
[403176215,1769243443351,-1000.0,0.0001797,2]
[403176216,1769243443360,-1000.0,0.0001797,2]
[403176217,1769243443369,-500.34685322,0.00017973,2]
[403176218,1769243443379,-247.26659948,0.00017973,2]
[403176219,1769243443388,-150.0,0.00017973,2]
[403176220,1769243443397,-500.0,0.00017973,2]
[403176221,1769243443406,-500.0,0.00017973,2]
[403176222,1769243443415,-500.43979477,0.00017973,2]
[403176223,1769243443425,-501.90117021,0.00017973,2]
[403176224,1769243443434,-500.0,0.00017973,2]
[403176225,1769243443444,-178.05953076,0.00017973,2]
[403176226,1769243443454,-501.2562389,0.00017973,2]
[403176227,1769243443464,-502.02546222,0.00017973,2]
[403176228,1769243443474,-500.0,0.00017973,2]
[403176229,1769243443484,-500.0,0.00017973,2]
[403176230,1769243443494,-501.68829632,0.00017973,2]
[403176231,1769243443506,-501.96776768,0.00017973,2]
[403176232,1769243443519,-160.03828545,0.00017973,2]
[403176233,1769243443529,-574.71375417,0.00017973,2]
[403176234,1769243443541,-500.0,0.00017973,2]
[403176235,1769243443552,-500.0,0.00017973,2]
[403176236,1769243443562,-502.21809292,0.00017973,2]
[403176237,1769243443573,-500.0,0.00017973,2]
[403176238,1769243443585,-500.0,0.00017973,2]
[403176239,1769243443596,-500.0,0.00017973,2]
[403176240,1769243443607,-500.0,0.00017973,2]
[403176241,1769243443617,-500.0,0.00017973,2]
[403176242,1769243443628,-150.0,0.00017973,2]
[403176243,1769243443638,-547.55,0.0001798,2]
[403176244,1769243443648,-500.0,0.00017982,2]
[403176245,1769243443658,-242.15909246,0.00017983,2]
[403176246,1769243443667,-94.87847161,0.00017989,2]
[403176247,1769243443681,-405.12152839,0.00017989,2]
[403176248,1769243443697,-150.0,0.0001799,2]
[403176249,1769243443706,-151.0,0.00017997,2]
[403176250,1769243443722,-249.63829755,0.00017999,2]
[403176251,1769243443740,-1050.88046111,0.00017999,5]
[403176252,1769243443750,-1050.88046112,0.00017999,5]
[403176253,1769243443760,-1050.88046112,0.00017999,5]
[403176254,1769243443770,-1050.88046112,0.00017999,5]
[403176255,1769243443780,-1050.88046112,0.00017999,5]
[403176256,1769243443790,-1050.88046112,0.00017999,5]
[403176257,1769243443799,-636.91,0.00017999,2]
[403176258,1769243443809,-636.91,0.00017999,2]
[403176259,1769243443819,-636.91,0.00017999,2]
[403176260,1769243443828,-636.91,0.00017999,2]
[403176261,1769243443838,-636.91,0.00017999,2]
[403176262,1769243443848,-636.91,0.00017999,2]
[403176263,1769243443857,-636.91,0.00017999,2]
[403176264,1769243443866,-636.91,0.00017999,2]
[403176265,1769243443877,-636.91,0.00017999,2]
[403176266,1769243443887,-636.91,0.00017999,2]
[403176267,1769243443897,-636.91,0.00017999,2]
[403176268,1769243443908,-636.91,0.00017999,2]
[403176269,1769243443917,-636.96786279,0.00017999,2]
[403176270,1769243443929,-500.0,0.00017999,2]
[403176271,1769243443939,-500.0,0.00017999,2]
[403176272,1769243443949,-500.0,0.00017999,2]
[403176273,1769243443962,-500.0,0.00017999,2]
[403176274,1769243443972,-500.0,0.00017999,2]
[403176275,1769243443982,-500.0,0.00017999,2]
[403176276,1769243443991,-500.0,0.00017999,2]
[403176277,1769243444003,-500.0,0.00017999,2]
[403176278,1769243444012,-500.0,0.00017999,2]
[403176279,1769243444021,-500.0,0.00017999,2]
[403176280,1769243444032,-500.0,0.00017999,2]
[403176281,1769243444041,-500.0,0.00017999,2]
[403176282,1769243444052,-311.60217601,0.00017999,2]
[403176283,1769243444063,-1050.88046112,0.00017999,5]
[403176284,1769243444072,-151.0,0.00017999,2]
[403176285,1769243444081,-152.533903,0.00017999,2]
[403176286,1769243444091,-151.0,0.00017999,2]
[403176287,1769243444100,-151.0,0.00017999,2]
[403176288,1769243444112,-151.0,0.00017999,2]
[403176289,1769243444121,-300.0,0.00017999,2]
[403176290,1769243444133,-13686.32468372,0.00017999,2]
[403176291,1769243444143,-500.0,0.00018,2]
[403176292,1769243444154,-500.0,0.00018,2]
[403176293,1769243444164,-500.0,0.00018,2]
[403176294,1769243444173,-500.0,0.00018,2]
[403176295,1769243444182,-499.99,0.00018,2]
[403176296,1769243444192,-220.75448134,0.00018,2]
[403176297,1769243444202,-263773.55565587,0.00018,2]
[403176298,1769243444214,-370636.04896134,0.00018,2]
[403176299,1769243444225,-1254.41808677,0.00018,2]
[403176300,1769243444244,-312.7,0.00018,2]
[403176301,1769243444256,-4346.43493436,0.00018,2]
[403176302,1769243444877,-7219.60376223,0.00014011,2]
[403176303,1769243444903,-301.76454383,0.00014011,2]
[403176304,1769243444915,-2972.18218874,0.00014011,2]
[403176305,1769243444924,-3476.0,0.00014342,2]
[403176306,1769243444935,-452.46278353,0.00016428,2]
[403176307,1769243444947,-1000.0,0.000168,2]
[403176308,1769243444962,-3476.0,0.00017342,2]
[403176309,1769243445235,-452.46278353,0.0001799,2]
[403176310,1769243445246,-452.46278353,0.0001799,2]
[403176311,1769243445257,-280894.8486597,0.00018,2]
[403176312,1769243445447,-41900.74232976,0.00018,2]
[403176313,1769243445458,-3454261.34953014,0.00018,2]
[403176314,1769243445467,-419.73041029,0.00018,2]
[403176315,1769243445476,-238.84,0.00018,2]
[403176316,1769243445484,-4535854.52385077,0.00018,2]
[403176317,1769243445498,-347.053942,0.00018,2]
[403176319,1769243448346,-1.7e-07,0.00018,2]
[403176320,1769243448695,-764.35609758,0.00014567,2]
[403176321,1769243448940,-9729.19439722,0.00014567,2]
[403176322,1769243448949,-151.0,0.00015925,2]
[403176323,1769243448960,-1000.0,0.000169,2]
[403176324,1769243448969,-1823.29216224,0.00018,2]
[403176325,1769243448980,-647.22640714,0.00018,2]
[403176326,1769243448991,-409.14193754,0.00018,2]
[403176327,1769243450909,1583.1861902,0.00012193,2]
[403176328,1769243452361,1000.0,0.000226,120]
[403176329,1769243460196,-697.56558262,0.00012193,2]
[403176330,1769243462915,-300.0,0.00012193,2]
[403176331,1769243464566,5809.17516499,0.00012192,2]
[403176332,1769243464704,-487.06693158,0.00012192,2]
[403176333,1769243468039,-328.42331248,0.00012192,2]
[403176334,1769243469873,-182.4341895,0.00012192,2]
[403176335,1769243472144,-304.44849242,0.00012192,2]
[403176336,1769243475091,5809.17516499,0.0001219,2]
[403176337,1769243477134,-412.72971108,0.0001219,2]
[403176338,1769243479987,-1053.2764037,0.0001219,2]
[403176339,1769243483053,5809.17516499,0.0001219,2]
[403176340,1769243483389,-244.80789902,0.0001219,2]
[403176341,1769243486295,-260.66825846,0.0001219,2]
[403176342,1769243489424,-253.8859156,0.0001219,2]
[403176343,1769243491643,-203.84201728,0.0001219,2]
[403176344,1769243495214,-193.27711953,0.0001219,2]
[403176345,1769243496523,-157.51314436,0.0001219,2]
[403176346,1769243498213,-287.61923921,0.0001219,2]
[403176347,1769243500618,-226.62935403,0.0001219,2]
[403176348,1769243503836,-300.0,0.0001219,2]
[403176349,1769243506011,-172.53820591,0.0001219,2]
[403176350,1769243509673,-226.46511723,0.0001219,2]
[403176351,1769243511760,-269.12598303,0.0001219,2]
[403176352,1769243513404,-219.58282256,0.0001219,2]
[403176353,1769243516988,-254.30682026,0.0001219,2]
[403176354,1769243519715,-233.32957957,0.0001219,2]
[403176355,1769243521979,-196.31686961,0.0001219,2]
[403176356,1769243524969,-191.15444854,0.0001219,2]
[403176357,1769243527284,-299.76204081,0.0001219,2]
[403176358,1769243527343,-240.49128124,0.0001219,2]
[403176359,1769243529556,-280.7290306,0.0001219,2]
[403176360,1769243531714,-170.30130963,0.0001219,2]
[403176361,1769243533956,-649.34143886,0.0001219,2]
[403176362,1769243535606,-177.21446126,0.0001219,2]
[403176363,1769243538126,-451.92574196,0.0001219,2]
[403176364,1769243540929,-288.38501587,0.0001219,2]
[403176365,1769243544595,937.727066,0.00012129,2]
[403176366,1769243544694,-187.49372235,0.0001219,2]
[403176367,1769243546337,-274.0,0.0001219,2]
[403176368,1769243547986,-4.93671846,0.0001219,2]
[403176369,1769243548050,-146.50281486,0.00012192,2]
[403176370,1769243552553,-153.49718514,0.00012192,2]
[403176371,1769243552616,-79.02496837,0.00012192,2]
[403176372,1769243556892,-240.68893856,0.00012192,2]
[403176373,1769243560672,-182.59685887,0.00012192,2]
[403176374,1769243562821,-248.34761799,0.00012192,2]
[403176375,1769243565071,-738.30969581,0.00012192,2]
[403176376,1769243567240,-165.57403326,0.00012192,2]
[403176377,1769243569940,-235.68056376,0.00012192,2]
[403176378,1769243571108,-200.0,0.00012192,2]
[403176379,1769243574370,-183.95516542,0.00012192,2]
[403176380,1769243576704,-423.79,0.00012192,2]
[403176381,1769243578351,-190.48406699,0.00012192,2]
[403176382,1769243578410,-159.47121487,0.00012192,2]
[403176383,1769243578470,-57.73414714,0.00012193,2]
[403176384,1769243580721,-272.39166125,0.00012193,2]
[403176385,1769243583707,-382.16196347,0.00012193,2]
[403176386,1769243586405,-203.76731991,0.00012193,2]
[403176387,1769243590280,-314.91192107,0.00012193,2]
[403176388,1769243595072,-312.85545498,0.00012193,2]
[403176389,1769243597760,-359.86452808,0.00012193,2]
[403176390,1769243603371,-155.03186656,0.00012193,2]
[403176391,1769243604913,-367.40314113,0.00012193,2]
[403176392,1769243607688,-162.96462613,0.00012193,2]
[403176393,1769243609322,-321.55787541,0.00012193,2]
[403176394,1769243610963,-155.26686864,0.00012193,2]
[403176396,1769243613723,-454.1716,0.00012193,2]
[403176397,1769243630867,-169.65782382,0.00012193,2]
[403176398,1769243653118,-184.0,0.00012193,2]
[403176399,1769243676194,-244.04452484,0.00012193,2]
[403176400,1769243679462,-177.2800995,0.00012193,2]
[403176401,1769243682581,-152.55509174,0.00012193,2]
[403176402,1769243684291,-222.33007091,0.00012193,2]
[403176403,1769243689118,-166.66,0.00012193,2]
[403176404,1769243690818,-162.06320131,0.00012193,2]
[403176405,1769243693333,-300.0,0.00012193,2]
[403176406,1769243696166,-218.34596674,0.00012193,2]
[403176407,1769243698197,-255.19206791,0.00012193,2]
[403176408,1769243702604,-258.69331905,0.00012193,2]
[403176409,1769243706014,-221.84434696,0.00012193,2]
[403176410,1769243709156,-155.03186656,0.00012193,2]
[403176411,1769243710614,-273.0,0.00012193,2]
[403176412,1769243712120,-732.12055295,0.00012193,2]
[403176413,1769243716031,-6.34632112,0.00012193,2]
[403176414,1769243716070,-155.03186655,0.00012246,2]
[403176415,1769243716103,-6.09631429,0.00012346,2]
[403176416,1769243718407,-378.01290191,0.00012346,2]
[403176417,1769243720364,-1.15051711,0.00012346,2]
[403176418,1769243720392,-433.8858445,0.00012498,2]
[403176419,1769243721887,-57.65344723,0.00012498,2]
[403176420,1769243721916,-160.65678582,0.00012498,2]
[403176421,1769243725640,-340.97923194,0.00012498,2]
[403176422,1769243725672,-12.6741734,0.00012499,2]
[403176423,1769243729343,-157.48265597,0.00012499,2]
[403176424,1769243729372,-121.3544574,0.00012499,2]
[403176425,1769243732525,-48.80237197,0.00012499,2]
[403176426,1769243732559,-151.66653275,0.00012499,2]
[403176427,1769243732598,-38.25000621,0.00012499,2]